bitfinex/quotes_BTCUSD_20251113
["timestamp","ask_amount","ask_price","bid_price","bid_amount"]
[1763048340793,0.26165071,101930.0,101910.0,0.19625113]
[1763048341020,0.24291904,101930.0,101910.0,0.25907113]
[1763048341263,0.19623233,101920.0,101910.0,0.001]
[1763048341543,0.02,101920.0,101910.0,0.19725159]
[1763048341720,0.21404233,101920.0,101910.0,0.001]
[1763048342160,0.21404233,101920.0,101900.0,0.04811]
[1763048342378,0.19625159,101910.0,101900.0,0.03632004]
[1763048342647,0.84933476,101910.0,101880.0,0.25417974]
[1763048342851,0.21881159,101910.0,101880.0,0.35375974]
[1763048343125,0.20806208,101900.0,101890.0,0.04641]
[1763048343390,0.22572208,101900.0,101880.0,0.04811]
[1763048343661,0.03203836,101910.0,101890.0,0.40510011]
[1763048343932,0.01203836,101910.0,101890.0,0.40510011]
[1763048344177,0.01203836,101910.0,101900.0,0.19727085]
[1763048344423,0.20828995,101910.0,101900.0,0.001]
[1763048344670,0.01203836,101910.0,101900.0,0.19627085]
[1763048344923,0.00024836,101910.0,101900.0,0.35867085]
[1763048345457,0.19649995,101910.0,101900.0,0.06282]
[1763048345990,0.19649995,101910.0,101900.0,0.001]
[1763048346259,0.19649995,101910.0,101900.0,0.06334]
[1763048346504,0.00024836,101910.0,101900.0,0.35798085]
[1763048346740,0.00024836,101910.0,101900.0,0.98850402]
[1763048346953,0.00024836,101910.0,101900.0,0.35798085]
[1763048347212,0.00024836,101910.0,101900.0,0.98850402]
[1763048347456,0.01199,101950.0,101930.0,0.19621308]
[1763048347668,0.19637459,101950.0,101940.0,0.04187]
[1763048347886,0.19637459,101950.0,101940.0,0.10421]
[1763048348137,0.0002,101950.0,101940.0,0.30040383]
[1763048348348,0.0002,101950.0,101940.0,0.20258]
[1763048348349,0.19637459,101950.0,101940.0,0.20258]
[1763048348640,0.19637459,101950.0,101940.0,0.04187]
[1763048349174,0.21619383,101940.0,101930.0,0.001]
[1763048349377,0.02885,101940.0,101930.0,0.001]
[1763048349594,0.23395436,101940.0,101930.0,0.001]
[1763048350466,0.19621367,101930.0,101910.0,0.34630389]
[1763048350682,0.21393367,101930.0,101910.0,0.34630389]
[1763048351112,0.22600352,101940.0,101920.0,0.25857233]
[1763048351341,0.0445486,101940.0,101930.0,0.19621308]
[1763048351566,0.0267386,101940.0,101930.0,0.40429308]
[1763048351783,0.01782572,101940.0,101930.0,0.40429308]
[1763048351993,0.01782572,101940.0,101930.0,0.40529308]
[1763048352480,0.01782572,101940.0,101930.0,0.39350607]
[1763048352702,0.21401955,101940.0,101930.0,0.09892299]
[1763048352923,0.01782572,101940.0,101930.0,0.39350607]
[1763048353137,0.01857054,101940.0,101930.0,0.39450607]
[1763048353356,0.21476437,101940.0,101930.0,0.18650616]
[1763048353574,0.21476437,101940.0,101930.0,0.02579616]
[1763048353793,0.93537369,101940.0,101930.0,0.002]
[1763048354014,0.87420369,101940.0,101930.0,0.002]
[1763048354247,0.30485052,101940.0,101930.0,0.002]
[1763048354465,1.25837369,101940.0,101930.0,0.002]
[1763048354684,1.25837369,101940.0,101930.0,0.001]
[1763048355361,0.19625533,101910.0,101890.0,0.35088461]
[1763048355588,0.01782572,101910.0,101900.0,0.19627085]
[1763048355805,0.01782572,101910.0,101900.0,0.35698085]
[1763048356241,0.21407731,101910.0,101900.0,0.16071]
[1763048356474,0.21407731,101910.0,101900.0,0.35698085]
[1763048356475,0.01782572,101910.0,101900.0,0.35698085]
[1763048357581,0.01782572,101910.0,101900.0,0.35798085]
[1763048358018,0.01782572,101910.0,101900.0,0.40535085]
[1763048358939,0.01782572,101910.0,101900.0,1.40229276]
[1763048359164,0.01782572,101910.0,101900.0,1.40329276]
[1763048360074,0.23418488,101950.0,101930.0,0.19620658]
[1763048360308,0.24103094,101950.0,101940.0,0.04737]
[1763048360519,0.24103094,101950.0,101930.0,0.24357658]
[1763048360765,0.19619383,101940.0,101920.0,0.09837]
[1763048361008,0.19621323,101930.0,101910.0,0.52902858]
[1763048361229,0.2141108,101930.0,101910.0,0.62739858]
[1763048361483,0.2141108,101930.0,101910.0,0.30439858]
[1763048361700,0.2141108,101930.0,101910.0,0.28082337]
[1763048361920,0.2141108,101930.0,101910.0,0.29063594]
[1763048362151,0.01789757,101930.0,101910.0,0.29063594]
[1763048362418,0.01789757,101930.0,101920.0,0.1844445]
[1763048362677,0.01789757,101930.0,101920.0,0.2467845]
[1763048362882,0.01789757,101930.0,101910.0,0.20606412]
[1763048363074,0.22306771,101930.0,101910.0,0.20606412]
[1763048363330,0.01789757,101930.0,101910.0,0.30443412]
[1763048363544,0.01889757,101930.0,101920.0,0.19623233]
[1763048363778,0.02785529,101930.0,101910.0,0.29264639]
[1763048364012,0.02785529,101930.0,101920.0,0.35694233]
[1763048364473,0.01889757,101930.0,101920.0,0.35694233]
[1763048365372,0.01789757,101930.0,101920.0,0.35694233]
[1763048365586,0.01889757,101930.0,101920.0,0.16071]
[1763048365800,0.01889757,101930.0,101920.0,0.35694233]
[1763048366230,0.21560724,101930.0,101910.0,0.20408896]
[1763048366454,0.21511065,101930.0,101910.0,0.20408896]
[1763048366666,0.00024832,101920.0,101910.0,0.30245896]
[1763048366892,0.01814589,101920.0,101910.0,0.30245896]
[1763048367102,0.01814589,101920.0,101910.0,0.36479896]
[1763048367524,0.01814589,101920.0,101910.0,0.35696159]
[1763048369214,0.01814589,101920.0,101910.0,0.35896159]
[1763048369706,0.01814589,101920.0,101910.0,0.98948476]
[1763048369937,0.01814589,101920.0,101910.0,1.3559035]
[1763048370818,0.0002,101950.0,101940.0,0.19619383]
[1763048371023,0.0002,101950.0,101940.0,1.015477]
[1763048371237,0.0002,101950.0,101940.0,0.38495383]
[1763048371471,0.0002,101950.0,101940.0,1.015477]
[1763048371950,0.0002,101950.0,101940.0,1.338477]
[1763048372376,0.0002,101950.0,101940.0,1.38189574]
[1763048372785,0.0002,101950.0,101940.0,1.38289574]
[1763048373058,0.0002,101950.0,101940.0,1.341477]
[1763048373703,0.19637459,101950.0,101940.0,0.19176]
[1763048373919,0.25663459,101950.0,101940.0,0.003]
[1763048374137,0.89611289,101950.0,101940.0,0.003]
[1763048374373,0.91611289,101950.0,101940.0,0.003]
[1763048374593,0.196226,101930.0,101910.0,0.19625097]
[1763048374809,0.02,101940.0,101920.0,0.19623228]
[1763048375038,0.19619445,101940.0,101920.0,0.35211228]
[1763048375260,0.19621308,101930.0,101920.0,0.15588]
[1763048375686,0.20896308,101930.0,101910.0,0.29721354]
[1763048376331,0.0002,101950.0,101930.0,0.19621308]
[1763048376547,0.19637662,101950.0,101930.0,0.26094308]
[1763048376761,0.23709894,101960.0,101940.0,0.19619383]
[1763048376980,0.229376,101960.0,101950.0,0.04839]
[1763048377182,0.01322,101960.0,101950.0,0.24456459]
[1763048377600,0.20996535,101960.0,101940.0,0.19619241]
[1763048378032,0.22594302,101970.0,101950.0,0.15588]
[1763048378261,0.19613611,101970.0,101960.0,0.06473]
[1763048378512,0.19613611,101970.0,101950.0,0.28732459]
[1763048378513,0.19613611,101970.0,101950.0,0.09115]
[1763048378719,0.19615629,101960.0,101940.0,0.19619368]
[1763048378920,0.19615629,101960.0,101940.0,0.28734368]
[1763048379415,0.19617459,101950.0,101940.0,0.09115]
[1763048379626,0.19615629,101960.0,101940.0,0.19619239]
[1763048379852,0.19615629,101960.0,101940.0,0.35207239]
[1763048380038,0.19615999,101960.0,101950.0,0.06473]
[1763048380238,0.19615999,101960.0,101930.0,0.34556373]
[1763048380460,0.19615999,101960.0,101940.0,0.2873433]
[1763048380683,0.19617459,101950.0,101930.0,0.33574552]
[1763048380897,0.19617459,101950.0,101930.0,0.13954]
[1763048380898,0.19619383,101940.0,101930.0,0.13954]
[1763048381101,0.19617459,101950.0,101930.0,0.33575164]
[1763048381314,0.19617459,101950.0,101930.0,0.40048164]
[1763048381529,0.19617459,101950.0,101940.0,0.002]
[1763048381733,0.22596775,101960.0,101940.0,0.26292383]
[1763048381980,0.19617459,101950.0,101930.0,0.24460164]
[1763048382192,0.19617459,101950.0,101940.0,0.28734383]
[1763048382631,0.22596775,101960.0,101940.0,0.35207383]
[1763048382842,0.01793023,101960.0,101950.0,0.26090459]
[1763048383057,0.21408558,101960.0,101950.0,0.15588]
[1763048383276,0.19617459,101950.0,101940.0,0.09115]
[1763048383497,0.03801,101990.0,101960.0,0.19615535]
[1763048383711,8e-05,101990.0,101980.0,0.11266]
[1763048384139,8e-05,101990.0,101980.0,0.20381]
[1763048384352,8e-05,101990.0,101980.0,0.39992688]
[1763048385408,8e-05,101990.0,101980.0,1.39686879]
[1763048385620,8e-05,101990.0,101980.0,0.76734562]
[1763048385849,8e-05,101990.0,101980.0,1.39786879]
[1763048388097,0.00208,101990.0,101980.0,1.40686878]
[1763048388343,0.00208,101990.0,101980.0,1.40886878]
[1763048388586,0.00181697,101990.0,101980.0,1.40886878]
[1763048389030,0.0002,102010.0,102000.0,0.51907843]
[1763048389254,0.0002,102010.0,102000.0,1.2039716]
[1763048389474,0.0002,102010.0,102000.0,1.2951216]
[1763048391180,1e-08,102010.0,102000.0,1.2951216]
[1763048391816,1e-08,102010.0,102000.0,1.2971216]
[1763048392291,1e-08,102010.0,102000.0,1.3001216]
[1763048392510,1e-08,102010.0,102000.0,1.35354033]
[1763048393360,1e-08,102010.0,102000.0,0.71301717]
[1763048393580,1e-08,102010.0,102000.0,1.34354034]
[1763048394046,1e-08,102010.0,102000.0,1.35354033]
[1763048394595,1e-08,102010.0,102000.0,0.71301717]
[1763048394815,0.00049602,102010.0,102000.0,0.34659843]
[1763048395225,0.00049602,102010.0,102000.0,0.66959843]
[1763048395430,0.00049602,102010.0,102000.0,1.21331636]
[1763048395696,0.0002,102020.0,102010.0,0.5190592]
[1763048395918,0.0002,102020.0,102010.0,1.21109839]
[1763048396617,0.0002,102020.0,102010.0,0.7107992]
[1763048397064,0.0002,102020.0,102010.0,1.25451713]
[1763048397270,0.0002,102020.0,102010.0,0.75421794]
[1763048397504,0.0002,102020.0,102010.0,1.25451713]
[1763048398164,0.0002,102020.0,102010.0,0.75521794]
[1763048398576,0.0002,102020.0,102010.0,0.75721794]
[1763048399478,0.0002,102020.0,102010.0,1.25751713]
[1763048399694,0.0002,102020.0,102010.0,1.36081713]
[1763048399930,0.0002,102020.0,102010.0,1.25751713]
[1763048400372,0.0002,102020.0,102010.0,0.7137992]
[1763048401271,0.76470918,102020.0,102010.0,0.001]
[1763048401499,0.77475913,102020.0,101990.0,0.19609283]
[1763048401778,0.22544994,102020.0,102010.0,0.001]
[1763048401985,2.22495994,102020.0,102010.0,0.001]
[1763048402190,0.19608815,102000.0,101980.0,0.25430933]
[1763048402408,0.23425765,101990.0,101970.0,0.33467398]
[1763048402640,0.23425765,101990.0,101980.0,0.19611688]
[1763048402849,0.73455684,101990.0,101970.0,0.24163398]
[1763048403060,0.03816,101990.0,101980.0,0.19611688]
[1763048403279,0.23425765,101990.0,101970.0,0.24163398]
[1763048403508,0.53845919,101990.0,101980.0,0.19611688]
[1763048403746,0.69637841,102000.0,101980.0,0.19611688]
[1763048403980,0.69637925,102000.0,101980.0,0.19611688]
[1763048404216,1.04825913,102020.0,102000.0,0.19607843]
[1763048404432,0.19607843,102000.0,101990.0,0.19609765]
[1763048404657,0.01911796,102020.0,102010.0,0.1960592]
[1763048404881,0.00044796,102020.0,102010.0,0.2415592]
[1763048405138,0.00044796,102020.0,102010.0,0.3992592]
[1763048405579,0.00344796,102020.0,102010.0,0.3992592]
[1763048406221,0.00344796,102020.0,102010.0,0.3388692]
[1763048406455,0.21815795,102020.0,102010.0,0.0455]
[1763048406670,0.1960592,102010.0,102000.0,0.0455]
[1763048406879,0.1960592,102010.0,101990.0,0.25328253]
[1763048407083,0.73074913,102020.0,102000.0,0.19607843]
[1763048407264,0.19607843,102000.0,101990.0,0.24347714]
[1763048407539,0.19607843,102000.0,101990.0,0.14469]
[1763048407760,0.1960592,102010.0,101990.0,0.34078765]
[1763048407977,0.19607843,102000.0,101990.0,0.04738]
[1763048408195,0.19609765,101990.0,101980.0,0.04738]
[1763048408416,0.19611688,101980.0,101970.0,0.14281]
[1763048408631,0.23425765,101990.0,101970.0,0.33894611]
[1763048409299,0.19611688,101980.0,101950.0,0.8035369]
[1763048409553,0.19611688,101980.0,101950.0,0.35061771]
[1763048409554,0.19613667,101970.0,101950.0,0.35061771]
[1763048409749,0.01204,101960.0,101950.0,0.24355459]
[1763048410174,0.2342625,101990.0,101960.0,0.36814882]
[1763048410351,0.74351586,101990.0,101980.0,0.001]
[1763048410802,0.74400586,101990.0,101970.0,0.19613509]
[1763048411012,0.19611688,101980.0,101960.0,0.30326882]
[1763048411222,0.19611688,101980.0,101960.0,0.29346106]
[1763048411448,0.19613611,101970.0,101950.0,0.57836331]
[1763048411657,0.75572191,101980.0,101960.0,0.19615405]
[1763048411870,0.24606738,101990.0,101970.0,0.2610152]
[1763048412079,0.25502754,101990.0,101970.0,0.2610152]
[1763048412287,0.04912016,101990.0,101980.0,0.24349688]
[1763048412506,0.19809765,101990.0,101980.0,0.04738]
[1763048412695,0.28623765,101990.0,101970.0,0.19613527]
[1763048412944,0.70618174,102000.0,101980.0,0.24349688]
[1763048413161,0.19609765,101990.0,101980.0,0.04738]
[1763048413374,0.19711688,101980.0,101960.0,0.20596181]
[1763048413587,0.19613611,101970.0,101950.0,0.67367331]
[1763048413808,0.19611777,101980.0,101960.0,0.29346428]
[1763048413998,0.19613811,101970.0,101960.0,0.19615497]
[1763048414247,0.19611777,101980.0,101960.0,0.19615497]
[1763048414454,0.19613611,101970.0,101960.0,0.19615535]
[1763048414667,0.001,101980.0,101970.0,0.19613611]
[1763048414875,0.001,101980.0,101970.0,0.35832611]
[1763048415092,0.001,101980.0,101970.0,0.26101611]
[1763048415312,0.19613611,101970.0,101960.0,0.19615218]
[1763048415518,0.19711688,101980.0,101960.0,0.29346218]
[1763048415729,0.19613611,101970.0,101950.0,0.57636331]
[1763048415934,0.19711688,101980.0,101960.0,0.19615496]
[1763048416322,0.001,101970.0,101960.0,0.19615496]
[1763048416779,0.76438357,101990.0,101960.0,0.35834496]
[1763048416988,0.19613611,101970.0,101960.0,0.06488]
[1763048417194,0.19613611,101970.0,101950.0,0.57636331]
[1763048417401,0.77672599,101980.0,101950.0,0.57636331]
[1763048417616,0.77672599,101980.0,101960.0,0.19615535]
[1763048417867,0.2269268,101980.0,101960.0,0.19615535]
[1763048418075,0.72622599,101980.0,101960.0,0.19615535]
[1763048418282,0.2259268,101980.0,101960.0,0.19615535]
[1763048418489,0.001,101970.0,101960.0,0.19615535]
[1763048418704,0.19713611,101970.0,101950.0,0.6736722]
[1763048418932,0.001,101970.0,101960.0,0.19615535]
[1763048419523,0.72622599,101980.0,101960.0,0.19715535]
[1763048419962,0.77572599,101980.0,101960.0,0.19715535]
[1763048420194,0.001,101980.0,101970.0,0.19613611]
[1763048420404,0.001,101980.0,101970.0,0.26101611]
[1763048420843,0.002,101980.0,101970.0,0.26101611]
[1763048421251,0.001,101980.0,101970.0,0.26101611]
[1763048421677,0.001,101980.0,101970.0,1.1816253]
[1763048421856,0.19607843,102000.0,101990.0,0.19609]
[1763048422056,0.80363162,102010.0,101990.0,0.19609]
[1763048422283,0.81258946,102010.0,101990.0,0.19609]
[1763048422401,0.81258946,102010.0,102000.0,0.19607843]
[1763048422402,0.00895784,102010.0,102000.0,0.19607843]
[1763048422609,0.1960592,102010.0,101990.0,0.2934]
[1763048422830,0.1960592,102010.0,101990.0,0.19609]
[1763048423228,0.23521169,102020.0,102000.0,0.26095843]
[1763048423472,0.1980592,102010.0,102000.0,0.26095843]
[1763048423674,0.002,102010.0,102000.0,0.26095843]
[1763048423826,0.2010592,102010.0,101990.0,0.2934]
[1763048424046,0.19607843,102000.0,101980.0,0.2532793]
[1763048424254,0.19607843,102000.0,101990.0,0.19609765]
[1763048424467,0.1960592,102010.0,101990.0,0.35828765]
[1763048424669,0.75231287,102020.0,102000.0,0.19607843]
[1763048424878,0.80678107,102020.0,102000.0,0.19607843]
[1763048425081,0.01204,102010.0,102000.0,0.19607843]
[1763048425532,0.2085892,102010.0,101990.0,0.24347765]
[1763048425765,0.19607843,102000.0,101990.0,0.24347765]
[1763048426187,0.004,102000.0,101990.0,0.24347765]
[1763048426405,0.004,102000.0,101990.0,0.40566765]
[1763048426609,0.01204,102010.0,102000.0,0.19607843]
[1763048426787,0.01504,102010.0,102000.0,0.19607843]
[1763048427223,0.2080992,102010.0,101990.0,0.14469]
[1763048427402,0.2085892,102010.0,101990.0,0.24347161]
[1763048427612,0.001,102000.0,101990.0,0.24347161]
[1763048427851,0.2090992,102010.0,102000.0,0.19607843]
[1763048428200,0.01404,102010.0,102000.0,0.19607843]
[1763048428408,0.002,102010.0,102000.0,0.35826843]
[1763048429254,0.001,102010.0,102000.0,0.35826843]
[1763048429703,0.01911796,102020.0,102010.0,0.1960592]
[1763048429880,0.1960592,102010.0,102000.0,0.06488]
[1763048430108,0.1960592,102010.0,102000.0,0.26095843]
[1763048430342,0.2090992,102010.0,102000.0,0.06488]
[1763048430552,0.2100992,102010.0,102000.0,0.06488]
[1763048430762,0.2100992,102010.0,102000.0,0.26095843]
[1763048430968,0.01404,102010.0,102000.0,0.26095843]
[1763048431384,0.2100992,102010.0,102000.0,0.06488]
[1763048431999,0.002,102010.0,102000.0,0.19607843]
[1763048432203,0.002,102010.0,102000.0,0.35573843]
[1763048432838,0.2100992,102010.0,102000.0,0.06229]
[1763048433072,0.1980592,102010.0,102000.0,0.35573843]
[1763048433281,0.2100992,102010.0,101990.0,0.24347677]
[1763048433489,0.19607843,102000.0,101990.0,0.34084677]
[1763048433693,0.19607843,102000.0,101990.0,0.14475]
[1763048433912,0.19609765,101990.0,101970.0,0.05244002]
[1763048434144,0.19615535,101960.0,101950.0,0.09982002]
[1763048434366,0.19617459,101950.0,101940.0,0.04737]
[1763048434580,0.22463459,101950.0,101940.0,0.04737]
[1763048435207,0.79084378,101950.0,101930.0,0.04839]
[1763048435433,0.78963378,101950.0,101930.0,0.24460177]
[1763048435635,0.19619383,101940.0,101930.0,0.24460177]
[1763048436050,0.19619383,101940.0,101930.0,0.04839]
[1763048436226,0.19619383,101940.0,101930.0,0.24460308]
[1763048436427,0.19619383,101940.0,101930.0,0.04839]
[1763048436582,0.74614378,101950.0,101930.0,0.24460308]
[1763048436794,0.19619383,101940.0,101930.0,0.24460308]
[1763048436999,0.24463459,101950.0,101930.0,0.24560308]
[1763048437387,0.24463459,101950.0,101930.0,0.24460308]
[1763048437613,0.24463459,101950.0,101940.0,0.19619383]
[1763048437814,0.04946,101950.0,101940.0,0.19619383]
[1763048438080,0.02946,101950.0,101940.0,0.19619383]
[1763048438209,0.02946,101950.0,101940.0,0.25848383]
[1763048439161,0.02946,101950.0,101940.0,0.19619383]
[1763048439999,0.22563459,101950.0,101940.0,0.04737]
[1763048440137,0.22463459,101950.0,101940.0,0.04737]
[1763048440342,0.22463459,101950.0,101940.0,0.04837]
[1763048440871,0.02846,101950.0,101940.0,0.24456383]
[1763048441206,0.19615718,101960.0,101940.0,0.24456383]
[1763048441400,0.19617459,101950.0,101940.0,0.04837]
[1763048441608,0.19617459,101950.0,101940.0,0.001]
[1763048442012,0.19682459,101950.0,101940.0,0.001]
[1763048442219,0.19615718,101960.0,101940.0,0.25848341]
[1763048442420,0.28893291,101970.0,101950.0,0.19617459]
[1763048442421,0.30893291,101970.0,101950.0,0.19617459]
[1763048442625,0.19715535,101960.0,101950.0,0.19617459]
[1763048443080,0.19715535,101960.0,101940.0,0.29356341]
[1763048443237,0.19615535,101960.0,101940.0,0.29356341]
[1763048443658,0.001,101950.0,101940.0,0.29356341]
[1763048443860,0.001,101950.0,101940.0,0.19619341]
[1763048444061,0.19617459,101950.0,101940.0,0.19619341]
[1763048444272,0.19615535,101960.0,101940.0,0.25848341]
[1763048444483,0.19716091,101960.0,101940.0,0.25848341]
[1763048444844,0.19716091,101960.0,101950.0,0.19617459]
[1763048445229,0.001,101960.0,101950.0,0.19617459]
[1763048445447,0.001,101960.0,101950.0,0.25846459]
[1763048445642,0.001,101960.0,101950.0,0.35583459]
[1763048446266,0.01873,101970.0,101960.0,0.19615535]
[1763048446502,0.19611953,101980.0,101970.0,0.19613611]
[1763048446689,0.19611953,101980.0,101970.0,0.23920611]
[1763048446959,0.19613611,101970.0,101960.0,0.04307]
[1763048447168,0.23042611,101970.0,101960.0,0.04307]
[1763048447374,0.03429,101970.0,101960.0,0.23922535]
[1763048447807,0.003,101980.0,101970.0,0.19612983]
[1763048448041,0.003,101980.0,101970.0,0.25841983]
[1763048448247,0.19911688,101980.0,101970.0,0.35578983]
[1763048448456,0.003,101980.0,101970.0,0.85608902]
[1763048449067,0.20818575,102010.0,102000.0,0.19607843]
[1763048449298,0.2080992,102010.0,102000.0,0.19607843]
[1763048449502,0.19607843,102000.0,101990.0,0.04737]
[1763048449703,0.25760395,102010.0,101990.0,0.2434658]
[1763048450438,0.01404,102010.0,102000.0,0.19607843]
[1763048450647,0.2100992,102010.0,102000.0,0.19607843]
[1763048450850,0.2090992,102010.0,102000.0,0.19607843]
[1763048451050,0.001,102010.0,102000.0,0.35573843]
[1763048451263,0.00980392,102000.0,101960.0,1.0261792]
[1763048451461,0.19615535,101960.0,101940.0,0.05244002]
[1763048451664,0.02846,101950.0,101930.0,0.04737]
[1763048451881,0.22464102,101950.0,101930.0,0.14474]
[1763048452085,0.19615535,101960.0,101940.0,0.06229]
[1763048452286,0.23046274,101970.0,101950.0,0.15966]
[1763048452540,0.20599621,101980.0,101960.0,0.25844535]
[1763048452763,0.20599621,101980.0,101970.0,0.19613611]
[1763048452891,0.20599621,101980.0,101960.0,0.15966]
[1763048453136,0.19613611,101970.0,101960.0,0.15966]
[1763048453333,0.19613611,101970.0,101960.0,0.35581535]
[1763048453578,0.19613611,101970.0,101960.0,0.06229]
[1763048453777,0.19613611,101970.0,101960.0,0.15966]
[1763048454361,0.19616813,101960.0,101940.0,0.29355506]
[1763048454568,0.19616813,101960.0,101940.0,0.61655506]
[1763048454911,0.22643291,101970.0,101940.0,0.61655506]
[1763048455048,0.19615737,101960.0,101950.0,0.19617459]
[1763048455251,0.19615737,101960.0,101940.0,0.61655506]
[1763048455506,0.19617459,101950.0,101940.0,0.61655506]
[1763048455656,0.19615737,101960.0,101940.0,0.61655506]
[1763048455854,0.19617459,101950.0,101940.0,0.61656109]
[1763048456118,0.20594291,101970.0,101950.0,0.35582841]
[1763048456409,0.19615535,101960.0,101950.0,0.35582841]
[1763048456574,0.20594291,101970.0,101950.0,0.35582841]
[1763048456775,0.19613923,101970.0,101950.0,0.35582841]
[1763048456989,0.85569899,101980.0,101960.0,0.19615535]
[1763048457194,0.22599621,101980.0,101960.0,0.19615535]
[1763048457394,0.20599621,101980.0,101960.0,0.29352535]
[1763048457608,0.19611688,101980.0,101970.0,0.25842611]
[1763048457809,0.23481689,101990.0,101970.0,0.35579611]
[1763048458036,0.19611688,101980.0,101970.0,0.35579611]
[1763048458178,0.23481689,101990.0,101970.0,0.35579611]
[1763048458383,0.19611688,101980.0,101970.0,0.35579611]
[1763048459167,0.19711688,101980.0,101970.0,0.35579611]
[1763048459337,0.19711688,101980.0,101970.0,0.25842611]
[1763048459496,0.19811688,101980.0,101970.0,0.25842611]
[1763048459698,0.19611688,101980.0,101970.0,0.19613611]
[1763048459924,0.19611688,101980.0,101970.0,0.0464]
[1763048460126,0.19711688,101980.0,101970.0,0.24253611]
[1763048460441,0.001,101980.0,101970.0,0.24253611]
[1763048460607,0.001,101980.0,101970.0,0.40231611]
[1763048461014,0.001,101980.0,101970.0,0.20618]
[1763048461238,0.19711688,101980.0,101970.0,0.30496611]
[1763048461438,0.001,101980.0,101970.0,0.30496611]
[1763048461652,0.19711688,101980.0,101970.0,0.30496611]
[1763048462222,0.19711688,101980.0,101970.0,0.0464]
[1763048462650,0.001,101980.0,101970.0,0.24253611]
[1763048462848,0.19711688,101980.0,101970.0,0.40231611]
[1763048463051,0.001,101980.0,101970.0,0.40231611]
[1763048463269,0.19711688,101980.0,101970.0,0.40231611]
[1763048463635,0.001,101980.0,101970.0,0.40231611]
[1763048464300,0.19760688,101980.0,101960.0,0.24254754]
[1763048464600,0.19619383,101940.0,101930.0,0.05244002]
[1763048464829,0.19623233,101920.0,101910.0,0.00289476]
[1763048465048,0.87543316,101930.0,101910.0,0.00289476]
[1763048465237,0.19623233,101920.0,101910.0,0.00289476]
[1763048465687,0.82593511,101920.0,101910.0,0.00289476]
[1763048465888,0.89543511,101920.0,101910.0,0.00289476]
[1763048466106,0.19672233,101920.0,101910.0,0.00289476]
[1763048466304,0.64807963,101920.0,101910.0,0.19914635]
[1763048466447,0.01787753,101920.0,101910.0,0.19914635]
[1763048466646,0.21410986,101920.0,101910.0,0.19914635]
[1763048466856,0.19623233,101920.0,101910.0,0.19914635]
[1763048467071,0.19623233,101920.0,101910.0,0.00289476]
[1763048467265,0.19623233,101920.0,101910.0,0.19914635]
[1763048467628,0.001,101920.0,101910.0,0.19914635]
[1763048468325,0.001,101920.0,101910.0,0.36166635]
[1763048468531,0.001,101920.0,101910.0,0.19914635]
[1763048468723,0.19723233,101920.0,101910.0,0.00289476]
[1763048468854,0.19723233,101920.0,101910.0,0.19914635]
[1763048469270,0.87692511,101920.0,101910.0,0.00289476]
[1763048469487,0.001,101920.0,101910.0,0.19914635]
[1763048469934,0.001,101920.0,101910.0,0.00289476]
[1763048469935,0.19723233,101920.0,101910.0,0.00289476]
[1763048470320,0.87594511,101920.0,101910.0,0.00289476]
[1763048470526,0.89692511,101920.0,101910.0,0.00289476]
[1763048470749,0.91473769,101920.0,101910.0,0.00289476]
[1763048472374,0.91573769,101920.0,101910.0,0.00289476]
[1763048472625,0.91473769,101920.0,101910.0,0.00289476]
[1763048472839,0.91673769,101920.0,101910.0,0.00289476]
[1763048473740,0.26605491,101920.0,101910.0,0.00289476]
[1763048474143,0.28703491,101920.0,101910.0,0.00289476]
[1763048474299,0.91673769,101920.0,101910.0,0.00289476]
[1763048474912,0.91668553,101920.0,101910.0,0.00289476]
[1763048475458,0.28698275,101920.0,101910.0,0.00289476]
[1763048475703,0.91668553,101920.0,101910.0,0.00289476]
[1763048476343,1.23968553,101920.0,101910.0,0.00289476]
[1763048476546,3.23968553,101920.0,101910.0,0.00289476]
[1763048477170,3.28310427,101920.0,101910.0,0.00289476]
[1763048477947,3.29197092,101920.0,101910.0,0.00289476]
[1763048478151,3.28310427,101920.0,101910.0,0.00289476]
[1763048478741,3.2919685,101920.0,101910.0,1e-08]
[1763048478955,0.21629011,101890.0,101880.0,0.0004]
[1763048479218,0.89274331,101890.0,101880.0,0.0004]
[1763048479384,1.26512331,101890.0,101880.0,0.0004]
[1763048480759,1.26612331,101890.0,101880.0,0.0004]
[1763048480959,1.30954205,101890.0,101880.0,0.0004]
[1763048481372,1.31840762,101890.0,101880.0,0.0004]
[1763048481581,1.31840372,101890.0,101880.0,0.0004]
[1763048481788,1.30954205,101890.0,101880.0,0.0004]
[1763048481990,1.30854205,101890.0,101880.0,0.0004]
[1763048482214,1.30954205,101890.0,101880.0,0.0004]
[1763048482445,1.32040136,101890.0,101880.0,0.0004]
[1763048482698,0.19634792,101860.0,101850.0,0.0004]
[1763048482924,0.03776042,101860.0,101850.0,0.048]
[1763048483124,0.21410834,101860.0,101850.0,0.2443672]
[1763048483393,0.26360834,101860.0,101850.0,0.0004]
[1763048483608,0.28409834,101860.0,101850.0,0.0004]
[1763048484041,0.91480112,101860.0,101850.0,0.0004]
[1763048484248,0.60809834,101860.0,101850.0,0.0004]
[1763048484865,1.23780112,101860.0,101850.0,0.0004]
[1763048485356,1.23780112,101860.0,101850.0,0.24585827]
[1763048485357,0.01776042,101860.0,101850.0,0.24585827]
[1763048485604,0.21610834,101860.0,101850.0,0.24585827]
[1763048485810,0.21710834,101860.0,101850.0,0.24585827]
[1763048486252,0.21759834,101860.0,101850.0,0.00189107]
[1763048488624,0.21759834,101860.0,101850.0,0.19825827]
[1763048489069,0.21710834,101860.0,101850.0,0.19825827]
[1763048489289,0.02076042,101860.0,101850.0,0.24585827]
[1763048489499,0.21710834,101860.0,101850.0,0.24585827]
[1763048489727,0.21710834,101860.0,101850.0,0.04949107]
[1763048489946,0.28708227,101860.0,101850.0,0.00189107]
[1763048490568,0.28659227,101860.0,101850.0,0.00189107]
[1763048490975,0.26659227,101860.0,101850.0,0.19825827]
[1763048491409,0.02074435,101860.0,101850.0,0.40644827]
[1763048492337,0.01774435,101860.0,101850.0,1.03615105]
[1763048492543,0.01774435,101860.0,101850.0,0.40644827]
[1763048492767,0.01874435,101860.0,101850.0,0.40644827]
[1763048492995,0.01774435,101860.0,101850.0,0.40644827]
[1763048493406,0.01739832,101860.0,101850.0,0.40644827]
[1763048494035,0.01739832,101860.0,101850.0,0.04729107]
[1763048494238,0.21374624,101860.0,101850.0,0.24465827]
[1763048494443,0.21374624,101860.0,101850.0,0.04829107]
[1763048494655,0.24582921,101870.0,101850.0,0.24465653]
[1763048494866,0.24582922,101870.0,101850.0,0.24316546]
[1763048495081,0.19634792,101860.0,101850.0,0.24316546]
[1763048495516,0.19634792,101860.0,101850.0,0.24216546]